[Event "Early-Titled-Tuesday-Blitz-January-16-2024"]
[Site "Chess.com"]
[Date "2024.01.16"]
[Round "1"]
[White "JMCadavid1998"]
[Black "HajiyevKanan"]
[Result "1-0"]
[WhiteElo "2185"]
[BlackElo "2561"]
[TimeControl "180+1"]
[EndTime "8:07:22 PST"]
[Termination "JMCadavid1998 won by resignation"]

1. d4 {[%clk 0:02:57.3]} 1... d5 {[%clk 0:03:00]} 2. Nf3 {[%clk 0:02:57.7]} 2...
c5 {[%clk 0:03:00.2]} 3. c4 {[%clk 0:02:58.4]} 3... cxd4 {[%clk 0:03:01.1]} 4.
cxd5 {[%clk 0:02:58.4]} 4... Qa5+ {[%clk 0:03:00.7]} 5. Qd2 {[%clk 0:02:56.2]}
5... Qxd5 {[%clk 0:03:00.8]} 6. Qxd4 {[%clk 0:02:56.4]} 6... Qxd4 {[%clk
0:03:01.4]} 7. Nxd4 {[%clk 0:02:57.3]} 7... a6 {[%clk 0:03:01.7]} 8. e4 {[%clk
0:02:56.6]} 8... e5 {[%clk 0:03:01.8]} 9. Nf3 {[%clk 0:02:56.4]} 9... Nc6 {[%clk
0:03:01.3]} 10. Bc4 {[%clk 0:02:56.6]} 10... Nf6 {[%clk 0:03:01.5]} 11. Ng5
{[%clk 0:02:49.5]} 11... Bb4+ {[%clk 0:03:00.8]} 12. Bd2 {[%clk 0:02:49.2]}
12... O-O {[%clk 0:03:01]} 13. a3 {[%clk 0:02:34.8]} 13... Bxd2+ {[%clk
0:02:59.5]} 14. Nxd2 {[%clk 0:02:35.7]} 14... h6 {[%clk 0:03:00.3]} 15. Ngf3
{[%clk 0:02:35.1]} 15... Bg4 {[%clk 0:02:55.8]} 16. Bd5 {[%clk 0:02:24.3]} 16...
Bxf3 {[%clk 0:02:49.6]} 17. Nxf3 {[%clk 0:02:22.3]} 17... Rfd8 {[%clk
0:02:47.2]} 18. Bxc6 {[%clk 0:02:21.5]} 18... bxc6 {[%clk 0:02:48.1]} 19. O-O
{[%clk 0:02:11.7]} 19... Nxe4 {[%clk 0:02:46]} 20. Nxe5 {[%clk 0:02:11.5]} 20...
Rd2 {[%clk 0:02:41.6]} 21. Nc4 {[%clk 0:02:00.1]} 21... Rc2 {[%clk 0:02:41.2]}
22. Rac1 {[%clk 0:02:00.4]} 22... Rxc1 {[%clk 0:02:34.6]} 23. Rxc1 {[%clk
0:02:01.3]} 23... Rd8 {[%clk 0:02:27.8]} 24. f3 {[%clk 0:02:01.7]} 24... Nd2
{[%clk 0:02:25.3]} 25. Ne5 {[%clk 0:01:48.6]} 25... Nb3 {[%clk 0:02:21.4]} 26.
Rxc6 {[%clk 0:01:48.4]} 26... Rd1+ {[%clk 0:02:19.3]} 27. Kf2 {[%clk 0:01:48.8]}
27... Rd2+ {[%clk 0:02:20.2]} 28. Kg3 {[%clk 0:01:49.3]} 28... f6 {[%clk
0:02:14.5]} 29. Nc4 {[%clk 0:01:43.3]} 29... Rc2 {[%clk 0:02:13.8]} 30. Rc8+
{[%clk 0:01:43.1]} 30... Kh7 {[%clk 0:02:13.7]} 31. Nd6 {[%clk 0:01:43.3]} 31...
Rxb2 {[%clk 0:02:12.7]} 32. h4 {[%clk 0:01:39.8]} 32... h5 {[%clk 0:02:10.4]}
33. Rb8 {[%clk 0:01:36.6]} 33... a5 {[%clk 0:02:05.8]} 34. Nc4 {[%clk
0:01:31.2]} 34... Rb1 {[%clk 0:02:04.1]} 35. Nxa5 {[%clk 0:01:29.3]} 35... Nd2
{[%clk 0:02:03.1]} 36. Rxb1 {[%clk 0:01:28.8]} 36... Nxb1 {[%clk 0:02:04]} 37.
Nc4 {[%clk 0:01:28.7]} 37... Nc3 {[%clk 0:02:03.7]} 38. Nb6 {[%clk 0:01:24.8]}
38... Kg6 {[%clk 0:02:04.2]} 39. a4 {[%clk 0:01:25.3]} 39... Kf5 {[%clk
0:02:04.8]} 40. a5 {[%clk 0:01:25.4]} 40... Ke6 {[%clk 0:02:03.6]} 41. a6 {[%clk
0:01:25.9]} 41... Nb5 {[%clk 0:02:02.4]} 42. Nc8 {[%clk 0:01:25.1]} 42... Nc7
{[%clk 0:01:53.7]} 43. a7 {[%clk 0:01:24.9]} 43... Na8 {[%clk 0:01:54.1]} 44.
Kf4 {[%clk 0:01:20.6]} 44... g6 {[%clk 0:01:43]} 45. g4 {[%clk 0:01:20.8]} 45...
Kd7 {[%clk 0:01:10.8]} 46. gxh5 {[%clk 0:01:21.1]} 46... gxh5 {[%clk 0:01:11.2]}
47. Kf5 {[%clk 0:01:21.7]} 47... Kxc8 {[%clk 0:01:11.5]} 48. Kg6 {[%clk
0:01:22.3]} 48... Kb7 {[%clk 0:01:10.8]} 49. Kxh5 {[%clk 0:01:22.7]} 49... Nc7
{[%clk 0:01:08.4]} 50. Kg6 {[%clk 0:01:22.6]} 50... Nd5 {[%clk 0:00:54.7]} 51.
Kf5 {[%clk 0:01:22.8]} 51... Kxa7 {[%clk 0:00:54.3]} 52. h5 {[%clk 0:01:22.9]}
52... Ne7+ {[%clk 0:00:46.7]} 53. Kxf6 {[%clk 0:01:22.9]} 53... Ng8+ {[%clk
0:00:46.5]} 54. Kg7 {[%clk 0:01:23]} 54... Ne7 {[%clk 0:00:46.4]} 55. h6 {[%clk
0:01:22.8]} 55... Nf5+ {[%clk 0:00:46.7]} 56. Kg6 {[%clk 0:01:23.1]} 56... Nh4+
{[%clk 0:00:42.2]} 57. Kh5 {[%clk 0:01:18.4]} 57... Nxf3 {[%clk 0:00:42.1]} 58.
h7 {[%clk 0:01:18.4]} 58... Nd4 {[%clk 0:00:40.3]} 59. h8=Q {[%clk 0:01:16.2]}
59... Nc6 {[%clk 0:00:41.2]} 60. Qf6 {[%clk 0:01:15.9]} 60... Kb6 {[%clk
0:00:42.1]} 61. Kg5 {[%clk 0:01:16.1]} 61... Kc5 {[%clk 0:00:43]} 62. Kf5 {[%clk
0:01:16]} 62... Nd4+ {[%clk 0:00:42.2]} 63. Ke4 {[%clk 0:01:15.2]} 63... Nc6
{[%clk 0:00:42.8]} 64. Qe6 {[%clk 0:01:15.5]} 64... Nb4 {[%clk 0:00:40.2]} 65.
Qe7+ {[%clk 0:01:14.8]} 65... Kc4 {[%clk 0:00:40.2]} 66. Qc7+ {[%clk 0:01:15.5]}
66... Kb5 {[%clk 0:00:39.9]} 67. Kd4 {[%clk 0:01:14.8]} 67... Nc6+ {[%clk
0:00:39.8]} 68. Kd5 {[%clk 0:01:14.7]} 68... Nb4+ {[%clk 0:00:40.4]} 69. Kd6
{[%clk 0:01:15.2]} 69... Na6 {[%clk 0:00:39.5]} 70. Qb7+ {[%clk 0:01:12.9]}
70... Ka5 {[%clk 0:00:39.2]} 71. Kc6 {[%clk 0:01:12.2]} 71... Nb4+ {[%clk
0:00:39.3]} 72. Kc5 {[%clk 0:01:12.4]} 72... Na6+ {[%clk 0:00:38.7]} 73. Kc4
{[%clk 0:01:12]} 1-0

[Event "Early-Titled-Tuesday-Blitz-January-16-2024"]
[Site "Chess.com"]
[Date "2024.01.16"]
[Round "1"]
[White "tptagain"]
[Black "jlf287"]
[Result "1-0"]
[WhiteElo "2955"]
[BlackElo "2508"]
[TimeControl "180+1"]
[EndTime "8:07:25 PST"]
[Termination "tptagain won on time"]

1. Nf3 {[%clk 0:03:00.9]} 1... d5 {[%clk 0:02:56.8]} 2. d4 {[%clk 0:03:00.8]}
2... Nf6 {[%clk 0:02:57.3]} 3. e3 {[%clk 0:03:01]} 3... c5 {[%clk 0:02:53.3]} 4.
Be2 {[%clk 0:03:00.7]} 4... Nc6 {[%clk 0:02:53.3]} 5. O-O {[%clk 0:03:00.7]}
5... Bg4 {[%clk 0:02:53.1]} 6. h3 {[%clk 0:03:01]} 6... Bh5 {[%clk 0:02:52.8]}
7. dxc5 {[%clk 0:03:00.4]} 7... e6 {[%clk 0:02:51.8]} 8. a3 {[%clk 0:03:00.5]}
8... Bxc5 {[%clk 0:02:51.6]} 9. b4 {[%clk 0:03:00.7]} 9... Bd6 {[%clk
0:02:52.3]} 10. Bb2 {[%clk 0:02:58]} 10... O-O {[%clk 0:02:51.8]} 11. Nbd2
{[%clk 0:02:57.5]} 11... Qe7 {[%clk 0:02:47.4]} 12. c4 {[%clk 0:02:56.9]} 12...
Rfd8 {[%clk 0:02:47.5]} 13. Qb3 {[%clk 0:02:37.1]} 13... Rac8 {[%clk 0:02:44.3]}
14. Rac1 {[%clk 0:02:34.3]} 14... a6 {[%clk 0:02:29.3]} 15. Rfd1 {[%clk
0:02:27.5]} 15... Ne4 {[%clk 0:02:20]} 16. cxd5 {[%clk 0:01:38.2]} 16... exd5
{[%clk 0:02:16.7]} 17. Qa2 {[%clk 0:01:15.5]} 17... Bb8 {[%clk 0:01:45.4]} 18.
Nf1 {[%clk 0:01:03.7]} 18... Ba7 {[%clk 0:01:16.2]} 19. Rxd5 {[%clk 0:00:58.1]}
19... Rxd5 {[%clk 0:01:11.8]} 20. Qxd5 {[%clk 0:00:59]} 20... Bg6 {[%clk
0:01:10.9]} 21. Nd4 {[%clk 0:00:52.4]} 21... Bxd4 {[%clk 0:01:04.3]} 22. Qxd4
{[%clk 0:00:47.9]} 22... f6 {[%clk 0:00:54]} 23. Qc4+ {[%clk 0:00:43.9]} 23...
Bf7 {[%clk 0:00:50.3]} 24. Qc2 {[%clk 0:00:41.5]} 24... Rd8 {[%clk 0:00:43.8]}
25. Bd3 {[%clk 0:00:40.6]} 25... Bg6 {[%clk 0:00:28.5]} 26. f3 {[%clk 0:00:38]}
26... Ng5 {[%clk 0:00:21.6]} 27. Bxg6 {[%clk 0:00:37.6]} 27... hxg6 {[%clk
0:00:21.5]} 28. h4 {[%clk 0:00:33.9]} 28... Nf7 {[%clk 0:00:16.6]} 29. Qxg6
{[%clk 0:00:33.2]} 29... Qd6 {[%clk 0:00:10.1]} 30. h5 {[%clk 0:00:26.8]} 30...
Qd3 {[%clk 0:00:08.2]} 31. Qxd3 {[%clk 0:00:26.2]} 31... Rxd3 {[%clk 0:00:09.1]}
32. Bc3 {[%clk 0:00:23.7]} 32... Nd6 {[%clk 0:00:08.9]} 33. Bb2 {[%clk
0:00:14.9]} 33... Ne7 {[%clk 0:00:02.3]} 34. Kf2 {[%clk 0:00:13.7]} 34... Nd5
{[%clk 0:00:01.2]} 35. Rc2 {[%clk 0:00:12.6]} 35... Rb3 {[%clk 0:00:01.5]} 36.
g3 {[%clk 0:00:12.2]} 36... Nb6 {[%clk 0:00:01.7]} 37. Nd2 {[%clk 0:00:10.7]}
1-0

[Event "Early-Titled-Tuesday-Blitz-January-16-2024"]
[Site "Chess.com"]
[Date "2024.01.16"]
[Round "1"]
[White "MIss_MIaMI"]
[Black "Nuvas"]
[Result "0-1"]
[WhiteElo "2432"]
[BlackElo "2802"]
[TimeControl "180+1"]
[EndTime "8:07:25 PST"]
[Termination "Nuvas won by resignation"]

1. e4 {[%clk 0:03:00.9]} 1... e5 {[%clk 0:03:00.2]} 2. Nf3 {[%clk 0:03:00.9]}
2... Nc6 {[%clk 0:03:00.9]} 3. d4 {[%clk 0:03:01.3]} 3... exd4 {[%clk 0:03:01]}
4. c3 {[%clk 0:03:01.9]} 4... dxc3 {[%clk 0:03:00.8]} 5. Bc4 {[%clk 0:03:01.5]}
5... d6 {[%clk 0:02:48.9]} 6. Qb3 {[%clk 0:02:58.8]} 6... Qd7 {[%clk 0:02:48.8]}
7. Nxc3 {[%clk 0:02:46.6]} 7... Na5 {[%clk 0:02:48.1]} 8. Qb5 {[%clk 0:02:42]}
8... Qxb5 {[%clk 0:02:32.3]} 9. Bxb5+ {[%clk 0:02:42.9]} 9... Bd7 {[%clk
0:02:32.5]} 10. O-O {[%clk 0:02:37.9]} 10... Nf6 {[%clk 0:02:22.5]} 11. Re1
{[%clk 0:02:24.5]} 11... Bxb5 {[%clk 0:02:16.1]} 12. Nxb5 {[%clk 0:02:25.4]}
12... O-O-O {[%clk 0:02:16.7]} 13. Nxa7+ {[%clk 0:02:24.7]} 13... Kb8 {[%clk
0:02:16]} 14. Nb5 {[%clk 0:02:25.2]} 14... Nc6 {[%clk 0:02:15.6]} 15. Ng5 {[%clk
0:02:13.6]} 15... Rd7 {[%clk 0:02:15.5]} 16. a3 {[%clk 0:01:48.3]} 16... h6
{[%clk 0:02:14]} 17. Nf3 {[%clk 0:01:48.9]} 17... g5 {[%clk 0:02:12.4]} 18. h3
{[%clk 0:01:44.4]} 18... Bg7 {[%clk 0:02:12.4]} 19. Bd2 {[%clk 0:01:40.9]} 19...
Re8 {[%clk 0:02:12.2]} 20. Bc3 {[%clk 0:01:38.6]} 20... Rde7 {[%clk 0:02:12.3]}
21. Nd2 {[%clk 0:01:30.9]} 21... b6 {[%clk 0:01:48.3]} 22. f3 {[%clk 0:01:28.8]}
22... Kb7 {[%clk 0:01:48.8]} 23. Rac1 {[%clk 0:01:19.7]} 23... Nh5 {[%clk
0:01:45.5]} 24. Bxg7 {[%clk 0:01:18.7]} 24... Nxg7 {[%clk 0:01:46.4]} 25. Nb3
{[%clk 0:01:11.1]} 25... f5 {[%clk 0:01:43.2]} 26. Nd2 {[%clk 0:01:04.4]} 26...
fxe4 {[%clk 0:01:40.1]} 27. fxe4 {[%clk 0:01:02.5]} 27... Ne6 {[%clk 0:01:35.6]}
28. Nc3 {[%clk 0:00:58.7]} 28... Nf4 {[%clk 0:01:34.4]} 29. Re3 {[%clk
0:00:51.7]} 29... Ne5 {[%clk 0:01:34.6]} 30. b3 {[%clk 0:00:49.5]} 30... Ned3
{[%clk 0:01:27.1]} 31. Rc2 {[%clk 0:00:35.1]} 31... Re5 {[%clk 0:01:11.4]} 32.
Kh2 {[%clk 0:00:30.6]} 32... d5 {[%clk 0:01:00.5]} 33. g3 {[%clk 0:00:27.9]}
33... d4 {[%clk 0:00:59.2]} 34. gxf4 {[%clk 0:00:28.2]} 34... Nxf4 {[%clk
0:00:59.9]} 35. Rf3 {[%clk 0:00:18.8]} 35... Rc5 {[%clk 0:00:57.1]} 36. b4
{[%clk 0:00:11.3]} 36... Rc6 {[%clk 0:00:57.3]} 37. Ndb1 {[%clk 0:00:06.6]}
37... dxc3 {[%clk 0:00:56]} 38. Rfxc3 {[%clk 0:00:06]} 38... Rxc3 {[%clk
0:00:55.5]} 39. Nxc3 {[%clk 0:00:06.9]} 39... Rd8 {[%clk 0:00:52.5]} 40. Kg3
{[%clk 0:00:06.5]} 40... h5 {[%clk 0:00:49]} 41. Kf3 {[%clk 0:00:06.3]} 41...
Rd3+ {[%clk 0:00:48.9]} 42. Kf2 {[%clk 0:00:06.9]} 42... Rxh3 {[%clk 0:00:49.5]}
43. e5 {[%clk 0:00:07.3]} 43... Rh2+ {[%clk 0:00:49.6]} 44. Ke3 {[%clk
0:00:07.4]} 44... Rxc2 {[%clk 0:00:50.5]} 45. Ne4 {[%clk 0:00:06.8]} 45... Ne6
{[%clk 0:00:45.3]} 46. Nf6 {[%clk 0:00:05.8]} 46... h4 {[%clk 0:00:44.9]} 47.
Ng4 {[%clk 0:00:05.5]} 47... h3 {[%clk 0:00:45.4]} 48. Ke4 {[%clk 0:00:06.2]}
48... h2 {[%clk 0:00:45.2]} 49. Nxh2 {[%clk 0:00:06.9]} 49... Rxh2 {[%clk
0:00:45]} 50. Kf5 {[%clk 0:00:07.8]} 50... Rh6 {[%clk 0:00:43.9]} 51. Ke4 {[%clk
0:00:07.3]} 51... Kc6 {[%clk 0:00:44]} 52. Kf5 {[%clk 0:00:07.8]} 52... Kd5
{[%clk 0:00:43.2]} 0-1

[Event "Early-Titled-Tuesday-Blitz-January-16-2024"]
[Site "Chess.com"]
[Date "2024.01.16"]
[Round "1"]
[White "PawnEatingZombie"]
[Black "IamSchrodingersCat"]
[Result "0-1"]
[WhiteElo "2129"]
[BlackElo "2573"]
[TimeControl "180+1"]
[EndTime "8:07:26 PST"]
[Termination "IamSchrodingersCat won on time"]

1. e4 {[%clk 0:03:00.5]} 1... c5 {[%clk 0:02:59.1]} 2. c3 {[%clk 0:02:59.9]}
2... g6 {[%clk 0:02:58.5]} 3. d4 {[%clk 0:02:58.9]} 3... cxd4 {[%clk 0:02:59.4]}
4. cxd4 {[%clk 0:02:58.7]} 4... d5 {[%clk 0:02:59.4]} 5. e5 {[%clk 0:02:58.8]}
5... Nc6 {[%clk 0:02:59.2]} 6. Nc3 {[%clk 0:02:56]} 6... Nh6 {[%clk 0:02:59.2]}
7. Bb5 {[%clk 0:02:43.8]} 7... Bg7 {[%clk 0:02:57.9]} 8. Nf3 {[%clk 0:02:42.3]}
8... O-O {[%clk 0:02:54.6]} 9. h3 {[%clk 0:02:41.7]} 9... Nf5 {[%clk 0:02:26.6]}
10. O-O {[%clk 0:02:32.2]} 10... f6 {[%clk 0:02:09.2]} 11. Bxc6 {[%clk
0:02:31.4]} 11... bxc6 {[%clk 0:02:08.7]} 12. Bf4 {[%clk 0:02:20.7]} 12... Qa5
{[%clk 0:01:28.4]} 13. Qa4 {[%clk 0:02:09.5]} 13... Qxa4 {[%clk 0:01:23.8]} 14.
Nxa4 {[%clk 0:02:09.2]} 14... g5 {[%clk 0:01:19.9]} 15. Bh2 {[%clk 0:02:07.5]}
15... h5 {[%clk 0:01:18.4]} 16. exf6 {[%clk 0:02:03.7]} 16... exf6 {[%clk
0:01:10.3]} 17. Rfd1 {[%clk 0:01:15.3]} 17... Re8 {[%clk 0:00:49]} 18. Rac1
{[%clk 0:01:08.9]} 18... Bd7 {[%clk 0:00:48.9]} 19. Nc5 {[%clk 0:01:05.2]} 19...
Bc8 {[%clk 0:00:49.1]} 20. Kf1 {[%clk 0:00:58.6]} 20... a5 {[%clk 0:00:40.2]}
21. b3 {[%clk 0:00:56.1]} 21... Kf7 {[%clk 0:00:38.5]} 22. Ne1 {[%clk
0:00:33.9]} 22... Ba6+ {[%clk 0:00:27.8]} 23. Nxa6 {[%clk 0:00:32.9]} 23... Rxa6
{[%clk 0:00:28.7]} 24. Nd3 {[%clk 0:00:24.6]} 24... Bf8 {[%clk 0:00:28.9]} 25.
Nc5 {[%clk 0:00:22.9]} 25... Bxc5 {[%clk 0:00:25.4]} 26. Rxc5 {[%clk 0:00:23.8]}
26... Ke6 {[%clk 0:00:25.8]} 27. g4 {[%clk 0:00:14.4]} 27... hxg4 {[%clk
0:00:21.6]} 28. hxg4 {[%clk 0:00:15.3]} 28... Nh6 {[%clk 0:00:20.1]} 29. f3
{[%clk 0:00:15.4]} 29... Kd7 {[%clk 0:00:20.7]} 30. Rdc1 {[%clk 0:00:13.6]}
30... Nf7 {[%clk 0:00:17.4]} 31. Kf2 {[%clk 0:00:12.2]} 31... Nd8 {[%clk
0:00:17.6]} 32. R5c2 {[%clk 0:00:09.3]} 32... Ne6 {[%clk 0:00:16.7]} 33. Rd2
{[%clk 0:00:06.8]} 33... a4 {[%clk 0:00:15.7]} 34. Kg2 {[%clk 0:00:05.8]} 34...
axb3 {[%clk 0:00:15.3]} 35. axb3 {[%clk 0:00:06.7]} 35... Rb6 {[%clk 0:00:15.4]}
36. Rc3 {[%clk 0:00:06.2]} 36... Ra8 {[%clk 0:00:15.5]} 37. Bg1 {[%clk
0:00:06.2]} 37... Ra3 {[%clk 0:00:14.6]} 38. Rdd3 {[%clk 0:00:06.7]} 38... Ra1
{[%clk 0:00:14.6]} 39. Be3 {[%clk 0:00:06.1]} 39... Rb1 {[%clk 0:00:14.4]} 40.
Bf2 {[%clk 0:00:04]} 40... Rb2 {[%clk 0:00:14]} 41. Kg3 {[%clk 0:00:03.3]} 41...
Ra6 {[%clk 0:00:13.7]} 0-1

[Event "Early-Titled-Tuesday-Blitz-January-16-2024"]
[Site "Chess.com"]
[Date "2024.01.16"]
[Round "1"]
[White "Lion-Al-Messi"]
[Black "margarita_2703"]
[Result "1-0"]
[WhiteElo "2636"]
[BlackElo "2292"]
[TimeControl "180+1"]
[EndTime "8:07:27 PST"]
[Termination "Lion-Al-Messi won by resignation"]

1. e4 {[%clk 0:03:00.9]} 1... e5 {[%clk 0:02:58.1]} 2. Nf3 {[%clk 0:03:01.3]}
2... Nc6 {[%clk 0:02:56.7]} 3. Bb5 {[%clk 0:03:01.7]} 3... a6 {[%clk 0:02:45.3]}
4. Ba4 {[%clk 0:03:01.6]} 4... Nf6 {[%clk 0:02:44.3]} 5. O-O {[%clk 0:03:01.1]}
5... Nxe4 {[%clk 0:02:29.4]} 6. d4 {[%clk 0:03:00.2]} 6... b5 {[%clk 0:02:28]}
7. Bb3 {[%clk 0:03:00.4]} 7... d5 {[%clk 0:02:21.9]} 8. dxe5 {[%clk 0:02:59.8]}
8... Be6 {[%clk 0:02:19.5]} 9. Nbd2 {[%clk 0:02:59.9]} 9... Nc5 {[%clk
0:02:14.4]} 10. c3 {[%clk 0:03:00.3]} 10... d4 {[%clk 0:02:04.9]} 11. Bxe6
{[%clk 0:02:49.4]} 11... Nxe6 {[%clk 0:02:05.8]} 12. cxd4 {[%clk 0:02:46.4]}
12... Ncxd4 {[%clk 0:02:04.9]} 13. Ne4 {[%clk 0:02:44.5]} 13... Qd5 {[%clk
0:02:03.7]} 14. Nc3 {[%clk 0:02:36.8]} 14... Qd7 {[%clk 0:02:01.6]} 15. Be3
{[%clk 0:02:33.6]} 15... c5 {[%clk 0:01:57.1]} 16. a4 {[%clk 0:02:27.5]} 16...
b4 {[%clk 0:01:53.5]} 17. Ne4 {[%clk 0:02:26.4]} 17... Qd5 {[%clk 0:01:48.2]}
18. Bxd4 {[%clk 0:02:22]} 18... Qxe4 {[%clk 0:01:45.3]} 19. Be3 {[%clk
0:02:19.9]} 19... Rd8 {[%clk 0:01:45]} 20. Qe2 {[%clk 0:02:18.2]} 20... Qd3
{[%clk 0:01:43.1]} 21. Qxd3 {[%clk 0:02:14.4]} 21... Rxd3 {[%clk 0:01:44]} 22.
Rfd1 {[%clk 0:02:14.8]} 22... Rxd1+ {[%clk 0:01:34.9]} 23. Rxd1 {[%clk
0:02:14.4]} 23... Be7 {[%clk 0:01:35.8]} 24. Nd2 {[%clk 0:02:12.9]} 24... O-O
{[%clk 0:01:34.6]} 25. Nc4 {[%clk 0:02:12.7]} 25... f6 {[%clk 0:01:26.6]} 26. b3
{[%clk 0:02:09.9]} 26... Rd8 {[%clk 0:01:16.9]} 27. Rxd8+ {[%clk 0:02:06]} 27...
Bxd8 {[%clk 0:01:17.3]} 28. f4 {[%clk 0:02:00.8]} 28... fxe5 {[%clk 0:01:14.6]}
29. Nxe5 {[%clk 0:02:01.7]} 29... Bf6 {[%clk 0:01:13.2]} 30. Nd3 {[%clk
0:01:53.9]} 30... Be7 {[%clk 0:00:55]} 31. f5 {[%clk 0:01:49.6]} 31... Nd4
{[%clk 0:00:49.7]} 32. Bxd4 {[%clk 0:01:48.6]} 32... cxd4 {[%clk 0:00:50.6]} 33.
Kf2 {[%clk 0:01:48]} 33... Kf7 {[%clk 0:00:47.3]} 34. Kf3 {[%clk 0:01:48.2]}
34... Kf6 {[%clk 0:00:47]} 35. Ke4 {[%clk 0:01:48.4]} 35... Bd6 {[%clk
0:00:44.7]} 36. h3 {[%clk 0:01:26.3]} 36... Kg5 {[%clk 0:00:41.9]} 37. Kxd4
{[%clk 0:01:09.2]} 37... Kxf5 {[%clk 0:00:40.7]} 38. Kc4 {[%clk 0:01:09.5]}
38... a5 {[%clk 0:00:35.4]} 39. Kd5 {[%clk 0:01:00.5]} 39... Bc7 {[%clk
0:00:32.9]} 40. Nc5 {[%clk 0:00:59.3]} 40... Bb6 {[%clk 0:00:25.6]} 41. Ne6
{[%clk 0:00:57.8]} 41... g6 {[%clk 0:00:20.6]} 42. g4+ {[%clk 0:00:57.7]} 42...
Kf6 {[%clk 0:00:18.9]} 43. Nf8 {[%clk 0:00:50.6]} 43... Kg7 {[%clk 0:00:18.1]}
44. Nd7 {[%clk 0:00:49.5]} 44... Bd8 {[%clk 0:00:17.7]} 45. Nc5 {[%clk
0:00:46.7]} 45... Kf6 {[%clk 0:00:17.2]} 46. Ne4+ {[%clk 0:00:46]} 46... Ke7
{[%clk 0:00:16.5]} 47. Kc6 {[%clk 0:00:46]} 47... Ke6 {[%clk 0:00:15.9]} 48.
Nc5+ {[%clk 0:00:46.4]} 48... Ke5 {[%clk 0:00:16.2]} 49. Nb7 {[%clk 0:00:47.3]}
49... Bf6 {[%clk 0:00:14.4]} 50. Nxa5 {[%clk 0:00:47.4]} 50... Kf4 {[%clk
0:00:15.3]} 51. Nb7 {[%clk 0:00:43.9]} 51... Kg3 {[%clk 0:00:15.5]} 52. a5
{[%clk 0:00:44]} 52... Kxh3 {[%clk 0:00:14.9]} 53. a6 {[%clk 0:00:44.1]} 53...
Bd4 {[%clk 0:00:14]} 54. Nc5 {[%clk 0:00:44.7]} 54... Kxg4 {[%clk 0:00:12.9]}
55. a7 {[%clk 0:00:44.8]} 55... Bxc5 {[%clk 0:00:13.8]} 56. Kxc5 {[%clk
0:00:44.8]} 1-0

[Event "Early-Titled-Tuesday-Blitz-January-16-2024"]
[Site "Chess.com"]
[Date "2024.01.16"]
[Round "1"]
[White "RamonManon0g"]
[Black "SlipperySpeedster"]
[Result "0-1"]
[WhiteElo "2377"]
[BlackElo "2700"]
[TimeControl "180+1"]
[EndTime "8:07:28 PST"]
[Termination "SlipperySpeedster won by checkmate"]

1. e4 {[%clk 0:03:00.9]} 1... e5 {[%clk 0:02:59]} 2. Nf3 {[%clk 0:03:01.2]} 2...
Nf6 {[%clk 0:02:56.9]} 3. Nxe5 {[%clk 0:03:01]} 3... d6 {[%clk 0:02:57.1]} 4.
Nf3 {[%clk 0:03:00.9]} 4... Nxe4 {[%clk 0:02:56.7]} 5. d4 {[%clk 0:03:01.1]}
5... d5 {[%clk 0:02:56.6]} 6. Bd3 {[%clk 0:03:01]} 6... Bd6 {[%clk 0:02:56.5]}
7. O-O {[%clk 0:03:00.3]} 7... O-O {[%clk 0:02:56]} 8. h3 {[%clk 0:03:00.9]}
8... c6 {[%clk 0:02:53.6]} 9. c4 {[%clk 0:03:00.9]} 9... f5 {[%clk 0:02:50.9]}
10. Nc3 {[%clk 0:03:00.7]} 10... Nd7 {[%clk 0:02:45.2]} 11. cxd5 {[%clk
0:02:59.4]} 11... Nxc3 {[%clk 0:02:45.3]} 12. bxc3 {[%clk 0:02:59.5]} 12... cxd5
{[%clk 0:02:46]} 13. Qc2 {[%clk 0:02:54.7]} 13... Qf6 {[%clk 0:02:38.1]} 14. Re1
{[%clk 0:02:48.9]} 14... b6 {[%clk 0:02:31.7]} 15. Bg5 {[%clk 0:02:40.9]} 15...
Qg6 {[%clk 0:02:30.7]} 16. Be7 {[%clk 0:02:41]} 16... Bxe7 {[%clk 0:02:26]} 17.
Rxe7 {[%clk 0:02:41.9]} 17... Qd6 {[%clk 0:02:12.2]} 18. Rae1 {[%clk 0:02:36.5]}
18... g6 {[%clk 0:02:11.8]} 19. Ng5 {[%clk 0:02:29.3]} 19... Nf6 {[%clk
0:02:11.3]} 20. c4 {[%clk 0:02:16.7]} 20... Ne4 {[%clk 0:02:03.6]} 21. Bxe4
{[%clk 0:02:00.6]} 21... dxe4 {[%clk 0:01:52.9]} 22. Rxh7 {[%clk 0:01:55.6]}
22... Qxd4 {[%clk 0:01:50.2]} 23. Rd1 {[%clk 0:01:48.7]} 23... Qf6 {[%clk
0:01:42.8]} 24. h4 {[%clk 0:01:48.1]} 24... Be6 {[%clk 0:01:31.4]} 25. Rd6
{[%clk 0:01:44.8]} 25... Qa1+ {[%clk 0:01:29.8]} 26. Rd1 {[%clk 0:01:41.9]}
26... Qe5 {[%clk 0:01:25.4]} 27. Qa4 {[%clk 0:01:15.2]} 27... e3 {[%clk
0:01:17.1]} 28. fxe3 {[%clk 0:01:08.6]} 28... Qxe3+ {[%clk 0:01:15.5]} 29. Kh1
{[%clk 0:01:08.9]} 29... Rad8 {[%clk 0:01:14.5]} 30. Re7 {[%clk 0:00:54.9]}
30... b5 {[%clk 0:00:51.2]} 31. Qc2 {[%clk 0:00:45.8]} 31... Rde8 {[%clk
0:00:38.2]} 32. Rh7 {[%clk 0:00:15.4]} 32... bxc4 {[%clk 0:00:25.5]} 33. Rd6
{[%clk 0:00:11.9]} 33... Qe5 {[%clk 0:00:19.4]} 34. Ra6 {[%clk 0:00:10.5]} 34...
Qa1+ {[%clk 0:00:11.2]} 35. Kh2 {[%clk 0:00:09.9]} 35... Qe5+ {[%clk 0:00:12.1]}
36. g3 {[%clk 0:00:10.4]} 36... f4 {[%clk 0:00:12.3]} 37. gxf4 {[%clk
0:00:09.3]} 37... Qxf4+ {[%clk 0:00:12.6]} 38. Kg2 {[%clk 0:00:09.5]} 38... Bd5+
{[%clk 0:00:13.2]} 39. Kh3 {[%clk 0:00:08.8]} 39... Re3+ {[%clk 0:00:12.9]} 40.
Nf3 {[%clk 0:00:05.9]} 40... Qxf3+ {[%clk 0:00:12.2]} 41. Kh2 {[%clk 0:00:06]}
41... Qh1# {[%clk 0:00:12.6]} 0-1